bitfinex/quotes_BTCUSD_20240828
["timestamp","ask_amount","ask_price","bid_price","bid_amount"]
[1724866682204,0.169148,59120.0,59112.0,0.338339]
[1724866682438,0.169148,59120.0,59116.0,0.169158]
[1724866682654,0.169146,59121.0,59116.0,0.169158]
[1724866682864,0.338247,59129.0,59117.0,0.01053863]
[1724866683075,0.169147,59120.0,59117.0,0.01053863]
[1724866683406,0.2083577,59132.0,59112.0,0.33834]
[1724866683652,0.169133,59125.0,59118.0,0.01053797]
[1724866683857,0.169124,59129.0,59122.0,0.338283]
[1724866684083,0.169124,59129.0,59114.0,0.0605]
[1724866684084,0.169123,59129.0,59124.0,0.169134]
[1724866684316,0.169128,59127.0,59118.0,0.338304]
[1724866684554,0.169126,59128.0,59120.0,0.338292]
[1724866684800,0.169126,59128.0,59122.0,0.338281]
[1724866684991,0.169126,59128.0,59124.0,0.169134]
[1724866685238,0.1,59131.0,59123.0,0.17962268]
[1724866685239,0.338244,59129.0,59123.0,0.17962268]
[1724866685462,0.169127,59128.0,59125.0,0.01048337]
[1724866685689,0.1,59131.0,59124.0,0.175135]
[1724866685690,0.169122,59129.0,59124.0,0.18561703]
[1724866685905,0.169122,59129.0,59126.0,0.01048272]
[1724866686125,0.36411112,59133.0,59126.0,0.676518]
[1724866686126,0.02588512,59133.0,59126.0,0.676518]
[1724866686340,0.02588512,59133.0,59128.0,0.169122]
[1724866686341,0.00817,59133.0,59128.0,0.169122]
[1724866686557,0.00817,59133.0,59127.0,0.01517975]
[1724866686794,0.00817,59133.0,59124.0,0.006]
[1724866686795,0.00817,59133.0,59132.0,0.169113]
[1724866687253,0.00817,59133.0,59132.0,0.51913296]
[1724866687467,0.00817,59133.0,59132.0,0.85735896]
[1724866687911,0.00817,59133.0,59132.0,0.52513296]
[1724866688117,0.00817,59133.0,59132.0,0.53613296]
[1724866688323,0.00817,59133.0,59132.0,0.87435896]
[1724866688550,0.00817,59133.0,59132.0,1.21258496]
[1724866688767,0.00817,59133.0,59132.0,1.31618496]
[1724866688978,0.00817,59133.0,59132.0,1.72001096]
[1724866689194,0.00817,59133.0,59132.0,1.81401096]
[1724866689425,0.00817,59133.0,59132.0,1.81601096]
[1724866689672,0.00817,59133.0,59132.0,1.82601096]
[1724866689898,0.00817,59133.0,59132.0,1.82401096]
[1724866690350,0.03468413,59133.0,59132.0,1.81501096]
[1724866690561,0.03468413,59133.0,59132.0,1.80501096]
[1724866690796,0.03468413,59133.0,59132.0,1.81901096]
[1724866691096,0.03468413,59133.0,59132.0,1.81701096]
[1724866691299,0.03468413,59133.0,59132.0,1.48778496]
[1724866691512,0.03468413,59133.0,59132.0,0.87135896]
[1724866691946,0.03468413,59133.0,59132.0,0.89099263]
[1724866692206,0.03468413,59133.0,59132.0,0.18654063]
[1724866692423,0.03468413,59133.0,59132.0,0.01742763]
[1724866692657,0.20363331,59133.0,59132.0,0.03142763]
[1724866692889,0.20363331,59133.0,59132.0,0.014]
[1724866692890,0.03452331,59133.0,59132.0,0.014]
[1724866693105,0.03452331,59133.0,59129.0,0.338241]
[1724866693358,0.02952331,59133.0,59132.0,0.18656271]
[1724866693582,0.02952331,59133.0,59132.0,0.197113]
[1724866693775,0.02952331,59133.0,59132.0,0.20056271]
[1724866694037,0.02952331,59133.0,59132.0,0.52478871]
[1724866694296,0.02952331,59133.0,59132.0,0.19656271]
[1724866694513,0.02952331,59133.0,59132.0,0.03644971]
[1724866694982,0.53685331,59133.0,59132.0,0.02644971]
[1724866695231,0.02952331,59133.0,59132.0,0.20756271]
[1724866695454,0.02952331,59133.0,59132.0,0.54578871]
[1724866695675,0.02952331,59133.0,59132.0,0.20756271]
[1724866696561,0.02952331,59133.0,59132.0,0.18656271]
[1724866696779,0.02952331,59133.0,59132.0,0.20756271]
[1724866697256,0.02952331,59133.0,59132.0,0.01744971]
[1724866697513,0.02952331,59133.0,59132.0,0.026]
[1724866697726,0.02952331,59133.0,59132.0,0.21260934]
[1724866698382,0.02952331,59133.0,59132.0,0.55083534]
[1724866698885,0.02952331,59133.0,59132.0,0.21260934]
[1724866699096,0.36774331,59133.0,59132.0,0.04349634]
[1724866699313,0.87507331,59133.0,59132.0,0.04349634]
[1724866699552,0.53685331,59133.0,59132.0,0.026]
[1724866699790,0.19863331,59133.0,59132.0,0.026]
[1724866700029,0.02952331,59133.0,59132.0,0.026]
[1724866700248,0.19863331,59133.0,59132.0,0.026]
[1724866700464,0.19863331,59133.0,59132.0,0.02874693]
[1724866700681,0.53685331,59133.0,59132.0,0.01974693]
[1724866700891,0.02952331,59133.0,59132.0,0.01974693]
[1724866701527,0.02952331,59133.0,59132.0,0.02374693]
[1724866701802,0.87507331,59133.0,59132.0,0.02374693]
[1724866702229,0.87507331,59133.0,59132.0,0.008]
[1724866702485,1.21329331,59133.0,59132.0,0.008]
[1724866703168,1.31329331,59133.0,59132.0,0.008]
[1724866703408,1.183812,59131.0,59130.0,0.00020358]
[1724866703625,1.283812,59131.0,59130.0,0.00020358]
[1724866708173,1.622044,59131.0,59130.0,0.00020358]
[1724866708352,1.624044,59131.0,59130.0,0.00020358]
[1724866709460,1.626044,59131.0,59130.0,0.00020358]
[1724866709909,1.627044,59131.0,59130.0,0.00020358]
[1724866710383,1.627044,59131.0,59106.0,0.0827]
[1724866710384,0.169175,59111.0,59106.0,0.0827]
[1724866710609,0.338329,59114.0,59103.0,0.0008976]
[1724866710825,0.338341,59112.0,59107.0,0.01584215]
[1724866711077,0.169171,59112.0,59107.0,0.169182]
[1724866711292,0.169171,59112.0,59106.0,0.33837]
[1724866711293,0.19570125,59112.0,59108.0,0.18502097]
[1724866711539,0.19570025,59112.0,59108.0,0.18502197]
[1724866712200,0.169178,59109.0,59108.0,0.01584097]
[1724866712412,0.169175,59111.0,59108.0,0.01584097]
[1724866712715,0.169175,59111.0,59104.0,0.338385]
[1724866712900,0.02653025,59112.0,59109.0,0.169177]
[1724866713093,0.19570025,59112.0,59109.0,0.169177]
[1724866713341,0.02653025,59112.0,59105.0,0.338379]
[1724866713579,0.507521,59111.0,59110.0,0.01337312]
[1724866713755,0.169173,59111.0,59108.0,0.017]
[1724866714090,0.02753025,59112.0,59108.0,0.175179]
[1724866714311,0.02753025,59112.0,59109.0,0.02427693]
[1724866714563,0.02753025,59112.0,59110.0,0.169173]
[1724866714772,0.02753025,59112.0,59110.0,0.169174]
[1724866715004,0.02753025,59112.0,59111.0,0.01427457]
[1724866715446,0.02753025,59112.0,59111.0,0.32134757]
[1724866715699,0.02653025,59112.0,59111.0,1.33638557]
[1724866715935,0.02653025,59112.0,59111.0,1.33538557]
[1724866716393,0.02653025,59112.0,59111.0,1.33438557]
[1724866716632,0.02653025,59112.0,59111.0,1.34438557]
[1724866716633,0.02753025,59112.0,59111.0,1.34438557]
[1724866716840,0.02853025,59112.0,59111.0,1.35438557]
[1724866719514,0.02853025,59112.0,59111.0,1.69273157]
[1724866719719,0.02853025,59112.0,59111.0,1.71573157]
[1724866719941,0.02853025,59112.0,59111.0,1.71773157]
[1724866720171,0.02853025,59112.0,59111.0,1.71573157]
[1724866720390,0.02853025,59112.0,59111.0,1.72073157]
[1724866720629,0.02653025,59112.0,59111.0,2.03907757]
[1724866720842,0.50540786,59130.0,59129.0,0.987807]
[1724866721055,0.50540786,59130.0,59129.0,1.32505]
[1724866721270,0.00300918,59133.0,59132.0,0.845565]
[1724866721522,0.00300918,59133.0,59132.0,0.507339]
[1724866721762,0.00300918,59133.0,59132.0,0.52132565]
[1724866722053,0.02952911,59133.0,59132.0,0.52132565]
[1724866722475,0.00300918,59133.0,59132.0,0.85955165]
[1724866722703,0.00300918,59133.0,59132.0,0.86955165]
[1724866723823,0.00300918,59133.0,59132.0,0.88155165]
[1724866724272,0.02952938,59133.0,59132.0,0.88155165]
[1724866724494,0.02952938,59133.0,59132.0,0.54332565]
[1724866724715,1.23979938,59133.0,59132.0,0.03598665]
[1724866724929,1.24179938,59133.0,59132.0,0.03598665]
[1724866725151,1.68001938,59133.0,59132.0,0.022]
[1724866725867,1.68001938,59133.0,59109.0,0.1379]
[1724866725868,0.0265,59119.0,59109.0,0.1379]
[1724866726094,0.338319,59116.0,59109.0,0.0753]
[1724866726347,0.169173,59111.0,59110.0,0.01395582]
[1724866726792,0.169173,59111.0,59108.0,0.0008987]
[1724866726997,0.169178,59109.0,59108.0,0.0008987]
[1724866727698,0.507535,59109.0,59108.0,0.0008987]
[1724866727926,0.87242196,59109.0,59108.0,0.0008987]
[1724866728170,0.87242196,59109.0,59108.0,0.0148987]
[1724866729527,1.23727896,59109.0,59108.0,0.0108987]
[1724866729746,0.89992196,59109.0,59108.0,0.0208987]
[1724866729954,1.23827896,59109.0,59108.0,0.0208987]
[1724866730414,1.23827896,59109.0,59108.0,0.0108987]
[1724866730598,1.23827896,59109.0,59108.0,0.0018987]
[1724866730599,1.23727896,59109.0,59108.0,0.0018987]
[1724866731301,1.23727896,59109.0,59108.0,0.0008987]
[1724866731757,0.87242196,59109.0,59108.0,0.0008987]
[1724866732428,1.21077896,59109.0,59108.0,0.0008987]
[1724866732643,1.21577896,59109.0,59108.0,0.0008987]
[1724866732863,1.21077896,59109.0,59108.0,0.0008987]
[1724866733089,1.21577896,59109.0,59108.0,0.0008987]
[1724866733345,0.87742196,59109.0,59108.0,0.0008987]
[1724866733559,0.87242196,59109.0,59108.0,0.0008987]
[1724866733773,1.21477896,59109.0,59108.0,0.0008987]
[1724866733995,1.21877896,59109.0,59108.0,0.0008987]
[1724866734414,1.21077896,59109.0,59108.0,0.0008987]
[1724866734649,0.87242196,59109.0,59108.0,0.0008987]
[1724866735323,1.21077896,59109.0,59108.0,0.0008987]
[1724866735563,0.87242196,59109.0,59108.0,0.0008987]
[1724866735812,0.02652996,59109.0,59108.0,0.1430987]
[1724866736051,0.53406496,59109.0,59108.0,0.1430987]
[1724866736274,0.53406496,59109.0,59108.0,0.15715808]
[1724866736490,0.53906496,59109.0,59108.0,0.1430987]
[1724866736704,0.54406496,59109.0,59108.0,0.15729142]
[1724866736942,0.53906496,59109.0,59108.0,0.15729142]
[1724866737193,0.53406496,59109.0,59108.0,0.0829987]
[1724866737432,0.87242196,59109.0,59108.0,0.01509142]
[1724866737663,1.5089001,59109.0,59108.0,0.01709142]
[1724866737898,1.5089001,59109.0,59108.0,0.0028987]
[1724866739425,1.5089001,59109.0,59108.0,0.0008987]
[1724866739643,1.5099001,59109.0,59108.0,0.0008987]
[1724866739864,1.5119001,59109.0,59108.0,0.0008987]
[1724866740293,0.845922,59107.0,59106.0,0.0008987]
[1724866740501,0.169207,59099.0,59098.0,0.0761]
[1724866740924,0.169204,59101.0,59098.0,0.09050605]
[1724866741163,0.169204,59100.0,59098.0,0.09050605]
[1724866741375,0.02653407,59099.0,59098.0,0.09050605]
[1724866741857,0.02653407,59099.0,59098.0,0.25971605]
[1724866742068,0.02653407,59099.0,59098.0,0.59903475]
[1724866742752,0.02753407,59099.0,59098.0,0.26061475]
[1724866742956,0.02753407,59099.0,59098.0,0.59903475]
[1724866743390,0.02753407,59099.0,59098.0,0.60603475]
[1724866743822,0.02753407,59099.0,59098.0,0.59903475]
[1724866744047,0.02753407,59099.0,59098.0,0.60903475]
[1724866744259,0.02853407,59099.0,59098.0,0.60903475]
[1724866745198,0.02853407,59099.0,59098.0,1.35147475]
[1724866745875,0.02853407,59099.0,59098.0,1.01305475]
[1724866747227,0.02853407,59099.0,59098.0,0.33621475]
[1724866747474,0.02853407,59099.0,59098.0,0.67463475]
[1724866747908,0.02853407,59099.0,59098.0,0.33621475]
[1724866748809,0.02853407,59099.0,59098.0,0.67463475]
[1724866749257,0.02853407,59099.0,59098.0,1.01305475]
[1724866749473,0.02853407,59099.0,59098.0,0.67463475]
[1724866751624,0.02853407,59099.0,59098.0,0.50542475]
[1724866751835,0.02853407,59099.0,59098.0,0.67463475]
[1724866752058,0.02853407,59099.0,59098.0,1.01305475]
[1724866752493,0.02853407,59099.0,59098.0,1.35147475]
[1724866753568,0.02853407,59099.0,59098.0,1.01305475]
[1724866754257,0.02853407,59099.0,59098.0,1.35147475]
[1724866754724,0.02853407,59099.0,59098.0,1.37447475]
[1724866757000,0.02853407,59099.0,59098.0,0.10140475]
[1724866757208,0.02853407,59099.0,59098.0,0.02530475]
[1724866757209,0.56265607,59099.0,59098.0,0.02530475]
[1724866757461,0.90107107,59099.0,59098.0,0.02530475]
[1724866757692,0.90107107,59099.0,59098.0,0.0108987]
[1724866758362,0.90742234,59099.0,59098.0,0.0008987]
[1724866759452,0.90642234,59099.0,59098.0,0.0018987]
[1724866759890,0.90642234,59099.0,59098.0,0.0028987]
[1724866760157,0.90642234,59099.0,59098.0,0.0008987]
[1724866760376,1.58325234,59099.0,59098.0,0.0008987]
[1724866760604,1.72301188,59099.0,59098.0,0.0008987]
[1724866760823,1.79883617,59099.0,59098.0,0.0008987]
[1724866761053,1.82411094,59099.0,59098.0,0.0058987]
[1724866761499,1.17084314,59086.0,59085.0,0.0008987]
[1724866761974,1.60933214,59086.0,59085.0,0.0008987]
[1724866762179,1.61433214,59086.0,59085.0,0.0008987]
[1724866762407,1.64087742,59086.0,59085.0,0.0008987]
[1724866763098,1.79647085,59086.0,59085.0,0.0008987]
[1724866763310,1.64067378,59086.0,59085.0,0.0008987]
[1724866763788,1.64267378,59086.0,59085.0,0.0008987]
[1724866764289,1.98116278,59086.0,59085.0,0.0008987]
[1724866764496,1.51145514,59080.0,59079.0,0.0008987]
[1724866764714,1.84997914,59080.0,59079.0,0.0008987]
[1724866764931,1.94997914,59080.0,59079.0,0.0008987]
[1724866765366,1.97652799,59080.0,59079.0,0.0008987]
[1724866765837,1.97652799,59080.0,59079.0,0.0018987]
[1724866765838,1.98552799,59080.0,59079.0,0.0018987]
[1724866766300,1.97652799,59080.0,59079.0,0.0008987]
[1724866766510,1.64600399,59080.0,59079.0,0.0008987]
[1724866766740,1.63600399,59080.0,59079.0,0.0008987]
[1724866766955,1.64400399,59080.0,59079.0,0.0008987]
[1724866767426,1.63600399,59080.0,59079.0,0.0008987]
[1724866767638,1.64300399,59080.0,59079.0,0.0008987]
[1724866768141,1.663488,59080.0,59079.0,0.0018987]
[1724866768350,1.663488,59080.0,59072.0,0.008998]
[1724866768351,1.673488,59080.0,59072.0,0.008998]
[1724866768600,1.673488,59080.0,59070.0,0.008998]
[1724866768601,0.005,59071.0,59052.0,0.0758]
[1724866768833,1.14474614,59058.0,59048.0,0.0758]
[1724866769062,1.48339614,59058.0,59048.0,0.0758]
[1724866769291,1.48339614,59058.0,59046.0,0.074298]
[1724866769292,1.50995213,59058.0,59046.0,0.074298]
[1724866769506,1.60995213,59058.0,59046.0,0.008998]
[1724866770179,0.846782,59047.0,59046.0,0.008998]
[1724866770422,1.48361614,59047.0,59046.0,0.008998]
[1724866770656,1.89316045,59047.0,59046.0,0.008998]
[1724866770863,2.03172286,59047.0,59046.0,0.008998]
[1724866771123,2.16693256,59047.0,59046.0,0.008998]
[1724866771869,2.03172286,59047.0,59046.0,0.008998]
[1724866772592,2.03772286,59047.0,59046.0,0.008998]
[1724866772856,2.06145261,59047.0,59046.0,0.008998]
[1724866773063,1.54694717,59047.0,59046.0,0.008998]
[1724866773287,1.30667552,59047.0,59046.0,0.008998]
[1724866773505,1.64538852,59047.0,59046.0,0.008998]
[1724866773738,1.68780317,59047.0,59046.0,0.008998]
[1724866773987,1.64538852,59047.0,59046.0,0.008998]
[1724866774261,1.00855438,59047.0,59046.0,0.008998]
[1724866775165,0.99855438,59047.0,59046.0,0.008998]
[1724866775577,1.34026738,59047.0,59046.0,0.008998]
[1724866775840,1.00155438,59047.0,59046.0,0.008998]
[1724866776927,0.65236116,59047.0,59046.0,0.089598]
[1724866777349,0.65436116,59047.0,59046.0,0.089598]
[1724866777570,0.99307416,59047.0,59046.0,0.008998]
[1724866777803,1.33178716,59047.0,59046.0,0.008998]
[1724866778042,1.35828716,59047.0,59046.0,0.008998]
[1724866778297,1.36028716,59047.0,59046.0,0.008998]
[1724866778701,1.70200016,59047.0,59046.0,0.008998]
[1724866778922,1.4010467,59047.0,59046.0,0.008998]
[1724866779130,1.36128716,59047.0,59046.0,0.008998]
[1724866779381,1.33560616,59047.0,59046.0,0.008998]
[1724866780012,1.34360616,59047.0,59046.0,0.008998]
[1724866780371,1.33060616,59047.0,59046.0,0.008998]
[1724866780576,0.99189316,59047.0,59046.0,0.008998]
[1724866781672,0.99889316,59047.0,59046.0,0.008998]
[1724866781872,0.99189316,59047.0,59046.0,0.008998]
[1724866782518,1.4310404,59047.0,59046.0,0.008998]
[1724866782719,1.35710616,59047.0,59046.0,0.008998]
[1724866783298,0.99189316,59047.0,59046.0,0.008998]
[1724866783817,1.33260616,59047.0,59046.0,0.008998]
[1724866784067,1.33060616,59047.0,59046.0,0.008998]
[1724866784789,1.33260616,59047.0,59046.0,0.008998]
[1724866785215,1.67131916,59047.0,59046.0,0.008998]
[1724866785639,1.33260616,59047.0,59046.0,0.008998]
[1724866785857,1.33960616,59047.0,59046.0,0.008998]
[1724866786071,1.67131916,59047.0,59046.0,0.008998]
[1724866786281,1.34060616,59047.0,59046.0,0.008998]
[1724866786531,1.33860616,59047.0,59046.0,0.008998]
[1724866786735,1.34060616,59047.0,59046.0,0.008998]
[1724866787192,1.67931916,59047.0,59046.0,0.008998]
[1724866789192,1.883635,59047.0,59046.0,0.008998]
[1724866789428,1.929135,59047.0,59046.0,0.008998]
[1724866790084,2.267848,59047.0,59046.0,0.008998]
[1724866790291,1.71981916,59047.0,59046.0,0.008998]
[1724866790522,2.0926787,59047.0,59046.0,0.008998]
[1724866791324,2.0946787,59047.0,59046.0,0.008998]
[1724866792737,2.1334429,59047.0,59046.0,0.008998]
[1724866792937,2.64070754,59047.0,59046.0,0.008998]
[1724866793514,2.30199454,59047.0,59046.0,0.008998]
[1724866794629,2.64070754,59047.0,59046.0,0.008998]
[1724866794847,2.30199454,59047.0,59046.0,0.008998]
[1724866795503,2.64070754,59047.0,59046.0,0.008998]
[1724866795720,2.66370754,59047.0,59046.0,0.008998]
[1724866796188,0.007,59039.0,59038.0,0.008998]
[1724866796413,0.84017737,59039.0,59038.0,0.008998]
[1724866796625,1.95645437,59039.0,59038.0,0.008998]
[1724866796838,1.629415,59039.0,59038.0,0.008998]
[1724866797051,1.6737124,59039.0,59038.0,0.008998]
[1724866797263,1.6687124,59039.0,59038.0,0.008998]
[1724866797707,1.6737124,59039.0,59038.0,0.008998]
[1724866798143,1.84226404,59039.0,59038.0,0.008998]
[1724866798439,1.84426404,59039.0,59038.0,0.008998]
[1724866799090,1.6757124,59039.0,59038.0,0.008998]
[1724866800196,1.5063334,59039.0,59038.0,0.008998]
[1724866800417,2.03173132,59039.0,59038.0,0.008998]
[1724866800649,1.82313437,59032.0,59026.0,0.0821]
[1724866800902,1.92813437,59032.0,59026.0,0.0821]
[1724866801130,1.58433537,59032.0,59026.0,0.0821]
[1724866801378,1.58433537,59032.0,59031.0,0.0829998]
[1724866801619,1.61090471,59032.0,59031.0,0.0829998]
[1724866801839,1.61090471,59032.0,59031.0,0.0008998]
[1724866802566,1.61190471,59032.0,59031.0,0.0008998]
[1724866803630,2.13140088,59032.0,59031.0,0.0008998]
[1724866804064,2.13340088,59032.0,59031.0,0.0008998]
[1724866804271,1.96484924,59032.0,59031.0,0.0008998]
[1724866805174,0.176416,59026.0,59025.0,0.0008998]
[1724866805418,1.82928737,59026.0,59025.0,0.0008998]
[1724866805650,1.92828737,59026.0,59025.0,0.0008998]
[1724866805881,1.95586051,59026.0,59025.0,0.0008998]
[1724866806810,1.95886051,59026.0,59025.0,0.0008998]
[1724866807291,1.96606611,59026.0,59025.0,0.0008998]
[1724866807729,2.13461775,59026.0,59025.0,0.0008998]
[1724866808391,1.96386228,59026.0,59025.0,0.0008998]
[1724866808668,1.97886228,59026.0,59025.0,0.0008998]
[1724866808883,2.01270822,59026.0,59025.0,0.0008998]
[1724866809100,1.97306611,59026.0,59025.0,0.0008998]
[1724866809340,1.97206611,59026.0,59025.0,0.0008998]
[1724866809569,1.61823311,59026.0,59025.0,0.0791998]
[1724866809782,1.32269374,59026.0,59025.0,0.1427998]
[1724866809980,1.31969374,59026.0,59025.0,0.1427998]
[1724866810247,1.61823311,59026.0,59025.0,0.1427998]
[1724866811561,1.62423311,59026.0,59025.0,0.1427998]
[1724866811782,1.61823311,59026.0,59025.0,0.1427998]
[1724866812006,1.62123311,59026.0,59025.0,0.1427998]
[1724866812228,1.63896286,59026.0,59025.0,0.1427998]
[1724866815223,1.30012986,59026.0,59025.0,0.1427998]
[1724866817907,0.31671889,59026.0,59025.0,0.1427998]
[1724866818116,0.31671889,59026.0,59025.0,0.16384693]
[1724866818117,0.65555189,59026.0,59025.0,0.16384693]
[1724866818535,0.65555189,59026.0,59025.0,0.1427998]
[1724866818767,0.14730289,59026.0,59025.0,0.1427998]
[1724866818968,0.14730289,59026.0,59025.0,0.6510578]
[1724866819205,0.04730289,59026.0,59025.0,0.67210493]
[1724866819464,0.05051004,59035.0,59034.0,0.50838383]
[1724866819667,0.10919445,59038.0,59037.0,0.59155883]
[1724866819668,0.00817436,59038.0,59037.0,0.59155883]
[1724866819926,0.00817436,59038.0,59037.0,1.26909883]
[1724866819927,0.000819,59038.0,59037.0,1.26909883]
[1724866820139,0.000819,59038.0,59037.0,1.29118788]
[1724866820346,0.000819,59038.0,59037.0,1.35718788]
[1724866820561,0.000819,59047.0,59046.0,0.65748083]
[1724866820791,0.000819,59047.0,59046.0,0.99619883]
[1724866821014,0.000819,59047.0,59046.0,0.17215441]
[1724866821253,0.000819,59047.0,59046.0,0.34151341]
[1724866821483,0.000819,59047.0,59046.0,0.17115441]
[1724866821708,0.000819,59047.0,59046.0,0.17095058]
[1724866822168,0.001819,59047.0,59046.0,0.17095058]
[1724866822395,0.001819,59047.0,59046.0,0.17115441]
[1724866823545,0.001819,59047.0,59046.0,0.67923141]
[1724866825612,0.171175,59047.0,59046.0,0.17095058]
[1724866825838,0.001819,59047.0,59046.0,0.17095058]
[1724866826263,0.171175,59047.0,59046.0,0.17095058]
[1724866826477,0.001819,59047.0,59046.0,0.17095058]
[1724866826687,0.001819,59047.0,59046.0,0.14840383]
[1724866826891,0.001819,59047.0,59046.0,0.17083916]
[1724866827313,0.000819,59047.0,59046.0,0.17083916]
[1724866827713,0.001819,59047.0,59046.0,0.17083916]
[1724866827983,0.02737851,59047.0,59046.0,0.17083916]
[1724866828944,0.02837851,59047.0,59046.0,0.17083916]
[1724866829614,0.02837851,59047.0,59046.0,0.34019816]
[1724866829824,0.02837851,59047.0,59046.0,0.67891616]
[1724866830055,0.02837851,59047.0,59046.0,1.01763416]
[1724866830499,0.02837851,59047.0,59046.0,0.67891616]
[1724866832062,0.02837851,59047.0,59046.0,0.32862156]
[1724866832759,0.02837851,59047.0,59046.0,0.66733956]
[1724866833002,0.02837851,59047.0,59046.0,1.00605756]
[1724866836854,0.02837851,59047.0,59046.0,0.32841773]
[1724866837097,0.02837851,59047.0,59046.0,0.66713573]
[1724866837329,0.02837851,59047.0,59046.0,1.00585373]
[1724866838015,0.02837851,59047.0,59046.0,1.00605756]
[1724866838246,0.02837851,59047.0,59046.0,0.66733956]
[1724866839369,0.02837851,59047.0,59046.0,0.32862156]
[1724866839591,0.19773451,59047.0,59046.0,0.15905873]
[1724866840031,0.53644751,59047.0,59046.0,0.15905873]
[1724866840316,0.53644751,59047.0,59046.0,0.01085873]
[1724866840317,1.24037351,59047.0,59046.0,0.01085873]
[1724866840562,1.24037351,59047.0,59032.0,0.1468]
[1724866840563,0.001,59046.0,59032.0,0.1468]
[1724866840782,0.169396,59033.0,59032.0,0.1468]
[1724866840996,0.338785,59035.0,59033.0,0.01957712]
[1724866841285,0.129219,59047.0,59038.0,0.0803]
[1724866841491,0.129219,59047.0,59037.0,0.00020383]
[1724866841492,0.131219,59047.0,59046.0,0.00020383]
[1724866841719,0.000819,59047.0,59046.0,0.08050383]
[1724866841931,0.000819,59047.0,59046.0,0.14700383]
[1724866842175,0.02737967,59047.0,59046.0,0.16562827]
[1724866842612,0.02937967,59047.0,59046.0,0.16562827]
[1724866842828,0.02937967,59047.0,59046.0,0.33498727]
[1724866843293,0.02937967,59047.0,59046.0,1.01242327]
[1724866844660,0.02737967,59047.0,59046.0,1.01242327]
[1724866844872,0.02837967,59047.0,59046.0,1.01242327]
[1724866845086,0.02737967,59047.0,59046.0,1.01242327]
[1724866845516,0.02837967,59047.0,59046.0,1.01242327]
[1724866850850,0.02837967,59047.0,59046.0,0.33498727]
[1724866851504,0.02837967,59047.0,59046.0,0.67370527]
[1724866851764,0.02837967,59047.0,59046.0,0.33498727]
[1724866852018,0.02837967,59047.0,59046.0,0.16562827]
[1724866852233,0.53644867,59047.0,59046.0,0.08702424]
[1724866852470,0.53644867,59047.0,59046.0,0.10092424]
[1724866852471,0.19773567,59047.0,59046.0,0.10092424]
[1724866852699,0.19773567,59047.0,59046.0,0.1442998]
[1724866853108,0.53644867,59047.0,59046.0,0.1442998]
[1724866853317,0.53644867,59047.0,59046.0,0.16380048]
[1724866853978,0.19673567,59047.0,59046.0,0.16380048]
[1724866854640,0.19773567,59047.0,59046.0,0.16380048]
[1724866854864,0.02737967,59047.0,59046.0,0.16380048]
[1724866855294,0.02837967,59047.0,59046.0,0.16380048]
[1724866855990,0.19773567,59047.0,59046.0,0.16380048]
[1724866856211,0.02837967,59047.0,59046.0,0.16380048]
[1724866858904,0.87516167,59047.0,59046.0,0.02040048]
[1724866859129,1.24227467,59047.0,59046.0,0.02040048]
[1724866859429,0.87516167,59047.0,59046.0,0.0008998]
[1724866859668,0.53644867,59047.0,59046.0,0.0008998]
[1724866859872,0.53644867,59047.0,59046.0,0.2506588]
[1724866859873,0.02837967,59047.0,59046.0,0.2506588]
[1724866860333,0.02837967,59047.0,59046.0,0.94763646]
[1724866860554,0.02837967,59047.0,59046.0,1.34925446]
[1724866861619,0.02737967,59047.0,59046.0,1.34925446]
[1724866861862,0.02837967,59047.0,59046.0,1.01053646]
[1724866862076,0.02837967,59047.0,59046.0,0.67181846]
[1724866862311,0.02737967,59047.0,59046.0,0.33310046]
[1724866862522,0.02737967,59047.0,59046.0,1.01053646]
[1724866862736,0.02837967,59047.0,59046.0,1.01053646]
[1724866863443,0.02837967,59047.0,59046.0,1.34925446]
[1724866863693,0.05020485,59063.0,59061.0,0.338632]
[1724866863925,0.2083577,59069.0,59068.0,0.84648]
[1724866864172,0.01772975,59071.0,59070.0,0.16929]
[1724866864382,0.1004097,59080.0,59072.0,0.0783]
[1724866864383,0.169262,59080.0,59072.0,0.0783]
[1724866864626,0.05020485,59082.0,59081.0,0.0783]
[1724866864877,0.01772975,59083.0,59081.0,0.0783]
[1724866864878,0.0679346,59083.0,59082.0,0.507768]
[1724866865090,0.338447,59094.0,59081.0,0.1395]
[1724866865091,0.38867085,59090.0,59081.0,0.1395]
[1724866865325,0.01772975,59090.0,59081.0,0.15896045]
[1724866865591,0.01772975,59090.0,59082.0,0.18764437]
[1724866865592,0.169243,59087.0,59082.0,0.18764437]
[1724866865828,0.169237,59089.0,59082.0,0.01839037]
[1724866866065,0.01772975,59090.0,59089.0,0.507708]
[1724866866287,0.01772975,59090.0,59089.0,0.169236]
[1724866866535,0.01772975,59090.0,59089.0,0.01920196]
[1724866866789,0.05839485,59098.0,59089.0,0.01920196]
[1724866866790,0.00819,59098.0,59089.0,0.42525847]
[1724866867059,0.00819,59098.0,59097.0,0.075]
[1724866867272,0.00819,59098.0,59089.0,0.01920196]
[1724866867273,0.53423865,59090.0,59089.0,0.01920196]
[1724866867486,0.0273,59090.0,59079.0,0.075]
[1724866867707,0.169257,59082.0,59079.0,0.075]
[1724866867939,0.05384315,59090.0,59079.0,0.075]
[1724866868150,0.338507,59083.0,59079.0,0.075]
[1724866868401,0.169257,59082.0,59079.0,0.075]
[1724866868856,0.169251,59084.0,59079.0,0.075]
[1724866869069,0.02654527,59082.0,59079.0,0.075]
[1724866869285,0.19580227,59082.0,59079.0,0.075]
[1724866869498,0.02654527,59082.0,59079.0,0.244264]
[1724866869711,0.02654527,59082.0,59081.0,0.169259]
[1724866869941,0.02654527,59082.0,59081.0,0.507777]
[1724866870169,0.02654527,59082.0,59081.0,0.846295]
[1724866870412,0.02654527,59082.0,59081.0,0.507777]
[1724866870641,0.02654527,59082.0,59081.0,0.926095]
[1724866870917,0.02654527,59082.0,59081.0,0.988495]
[1724866871143,0.02654527,59082.0,59081.0,1.011495]
[1724866871360,0.169197,59103.0,59098.0,0.251609]
[1724866871595,0.169188,59106.0,59101.0,0.169201]
[1724866871827,0.169194,59104.0,59100.0,0.169204]
[1724866872034,0.169193,59104.0,59098.0,0.0824]
[1724866872248,0.00819,59107.0,59098.0,0.0824]
[1724866872497,0.169193,59104.0,59098.0,0.251608]
[1724866872735,0.338375,59106.0,59098.0,0.0824]
[1724866872979,0.338375,59106.0,59087.0,0.338483]
[1724866872980,0.32583937,59106.0,59094.0,0.0769]
[1724866873199,0.507613,59100.0,59099.0,0.01912356]
[1724866873421,0.16921,59098.0,59094.0,0.0769]
[1724866873851,0.338392,59103.0,59095.0,0.01882118]